bitfinex/quotes_BTCUSD_20240827
["timestamp","ask_amount","ask_price","bid_price","bid_amount"]
[1724718305039,0.04743548,63077.0,63074.0,0.0815]
[1724718305212,0.04743548,63077.0,63074.0,0.0785]
[1724718305633,0.20597248,63077.0,63074.0,0.0805]
[1724718305961,0.04743548,63076.0,63074.0,0.0805]
[1724718306668,0.0009064,63081.0,63080.0,0.475585]
[1724718306909,0.0009064,63081.0,63080.0,1.19232001]
[1724718307164,0.00071561,63083.0,63081.0,0.79263]
[1724718307341,0.00071561,63083.0,63081.0,1.40936001]
[1724718307539,0.00071561,63083.0,63081.0,1.50936001]
[1724718308599,0.0019064,63082.0,63081.0,1.52336001]
[1724718308818,0.0019064,63082.0,63081.0,1.56813674]
[1724718309144,0.0019064,63082.0,63081.0,1.88518874]
[1724718309772,0.0019064,63082.0,63081.0,1.84041201]
[1724718310178,0.0019064,63082.0,63081.0,1.85441201]
[1724718310399,0.0019064,63082.0,63081.0,1.84041201]
[1724718310400,0.0009064,63082.0,63081.0,1.84041201]
[1724718310602,0.0009064,63082.0,63081.0,1.52336001]
[1724718310781,0.0009064,63082.0,63081.0,0.41367801]
[1724718311575,0.0009064,63082.0,63081.0,0.42767801]
[1724718311784,0.0009064,63082.0,63081.0,0.39967801]
[1724718312216,0.0009064,63099.0,63089.0,0.27858375]
[1724718312425,0.0009064,63099.0,63091.0,0.1444]
[1724718312639,0.0009064,63099.0,63093.0,0.1444]
[1724718312839,0.0009064,63099.0,63095.0,0.1444]
[1724718313054,0.0009064,63099.0,63096.0,0.25617801]
[1724718313286,0.0009064,63099.0,63098.0,0.1444]
[1724718313431,0.0009064,63099.0,63098.0,0.30057801]
[1724718314500,0.0009064,63099.0,63098.0,0.30957801]
[1724718314652,0.0009064,63099.0,63098.0,0.30057801]
[1724718314977,0.0009064,63099.0,63098.0,0.31557801]
[1724718315273,0.0009064,63099.0,63098.0,0.30757801]
[1724718315678,0.0009064,63099.0,63098.0,0.31657801]
[1724718320011,0.0009064,63099.0,63098.0,0.1604]
[1724718320213,0.0009064,63099.0,63098.0,0.016]
[1724718327174,0.0009064,63099.0,63098.0,0.25247801]
[1724718327283,0.0009064,63099.0,63098.0,0.31707801]
[1724718330199,0.0009064,63099.0,63098.0,0.1609]
[1724718337091,0.0009064,63099.0,63098.0,0.31707801]
[1724718340649,0.0009064,63099.0,63098.0,1.10949501]
[1724718346333,0.0009064,63099.0,63098.0,0.47556101]
[1724718347330,0.0009064,63099.0,63098.0,0.79252801]
[1724718348535,0.0009064,63099.0,63098.0,0.41096101]
[1724718348735,0.0009064,63099.0,63098.0,0.33066101]
[1724718348963,0.0009064,63099.0,63098.0,0.016]
[1724718349371,0.1593874,63099.0,63098.0,0.016]
[1724718349575,0.0009064,63099.0,63098.0,0.016]
[1724718350027,0.0009064,63099.0,63098.0,0.41096101]
[1724718350366,0.0009064,63099.0,63098.0,0.47556101]
[1724718350724,0.0009064,63099.0,63098.0,1.10949501]
[1724718351279,0.0009064,63099.0,63098.0,1.42646201]
[1724718351488,0.0009064,63099.0,63098.0,1.43836254]
[1724718353752,0.0009064,63099.0,63098.0,1.4383613]
[1724718358478,0.0009064,63099.0,63098.0,1.5383613]
[1724718359543,0.0009064,63099.0,63098.0,1.8553283]
[1724718359743,0.0009064,63099.0,63098.0,1.90283359]
[1724718359946,0.0009064,63099.0,63098.0,1.8553283]
[1724718360286,0.0009064,63099.0,63098.0,1.93229335]
[1724718360310,0.0009064,63099.0,63098.0,1.92906391]
[1724718360882,0.0009064,63099.0,63098.0,1.98917309]
[1724718361083,0.0009064,63099.0,63098.0,1.85332183]
[1724718361284,0.0009064,63099.0,63098.0,1.88678762]
[1724718361617,0.0009064,63099.0,63098.0,1.85332183]
[1724718361842,0.0009064,63099.0,63098.0,1.91443189]
[1724718362043,0.0009064,63099.0,63098.0,1.86732183]
[1724718362240,0.0009064,63099.0,63098.0,1.85332183]
[1724718362646,0.0009064,63099.0,63098.0,1.91443189]
[1724718362851,0.0009064,63099.0,63098.0,1.90143189]
[1724718363106,0.0009064,63099.0,63098.0,1.93699465]
[1724718363471,0.009053,63104.0,63103.0,1.426239]
[1724718363687,0.009053,63104.0,63103.0,2.12169363]
[1724718364235,0.009053,63104.0,63103.0,2.16880369]
[1724718364438,0.009053,63104.0,63103.0,2.12169363]
[1724718364785,0.009053,63104.0,63103.0,2.13569363]
[1724718365282,0.009053,63104.0,63103.0,2.13669363]
[1724718365836,0.009053,63104.0,63103.0,2.12269363]
[1724718366307,0.009053,63104.0,63103.0,2.13669363]
[1724718366486,0.009053,63104.0,63103.0,2.15069363]
[1724718366662,0.009053,63104.0,63103.0,2.13669328]
[1724718367087,0.009053,63104.0,63103.0,2.15069302]
[1724718367287,0.009053,63104.0,63103.0,2.13669302]
[1724718367649,0.009053,63104.0,63103.0,2.12269302]
[1724718367870,0.0004,63119.0,63118.0,0.475299]
[1724718368069,0.0004,63119.0,63118.0,1.19714301]
[1724718368294,0.0004,63119.0,63118.0,0.40497801]
[1724718368501,0.0004,63119.0,63118.0,0.25617801]
[1724718368696,0.0004,63119.0,63118.0,0.26168441]
[1724718369119,0.0004,63119.0,63118.0,0.73698341]
[1724718369319,0.0004,63119.0,63118.0,0.51301741]
[1724718369715,0.0004,63119.0,63118.0,0.82988341]
[1724718369923,0.0004,63119.0,63118.0,0.51301741]
[1724718370122,0.0004,63119.0,63118.0,0.52101741]
[1724718370531,0.0004,63119.0,63118.0,0.50301741]
[1724718370714,0.0004,63119.0,63118.0,0.51201741]
[1724718371220,0.0004,63119.0,63118.0,0.50301741]
[1724718371641,0.0004,63119.0,63118.0,0.27068441]
[1724718372082,0.0004,63119.0,63118.0,0.28168441]
[1724718372236,0.0004,63119.0,63118.0,0.27068441]
[1724718372587,0.0004,63119.0,63118.0,0.0255064]
[1724718372588,0.475691,63119.0,63118.0,0.0255064]
[1724718372723,0.475691,63119.0,63110.0,0.0771]
[1724718372724,0.158439,63116.0,63111.0,0.1]
[1724718372945,0.158439,63116.0,63112.0,0.15617801]
[1724718373148,0.158439,63116.0,63113.0,0.1]
[1724718373397,0.158439,63116.0,63114.0,0.15617801]
[1724718373571,0.158439,63116.0,63115.0,0.1]
[1724718373572,0.475315,63116.0,63115.0,0.1]
[1724718373767,0.558315,63116.0,63115.0,0.1]
[1724718373969,0.875191,63116.0,63115.0,0.1]
[1724718374506,0.158448,63112.0,63111.0,0.00563092]
[1724718374716,0.316884,63115.0,63111.0,0.16180893]
[1724718375000,0.158447,63113.0,63112.0,0.25617801]
[1724718375438,0.158463,63106.0,63105.0,0.00550582]
[1724718375628,0.158463,63106.0,63097.0,0.0659]
[1724718375629,0.158465,63106.0,63097.0,0.0659]
[1724718375831,0.158466,63105.0,63098.0,0.15617801]
[1724718375984,0.316907,63110.0,63101.0,0.158475]
[1724718376191,0.083,63112.0,63102.0,0.15617801]
[1724718376391,0.558344,63112.0,63111.0,0.011]
[1724718376593,0.87524,63112.0,63111.0,0.011]
[1724718376793,0.158458,63109.0,63102.0,0.15617801]
[1724718377057,0.15846,63108.0,63102.0,0.15617801]
[1724718377340,0.0009064,63106.0,63103.0,0.1]
[1724718377576,0.475405,63104.0,63103.0,0.1]
[1724718377747,0.0608,63104.0,63097.0,0.00544085]
[1724718377891,0.158476,63101.0,63098.0,0.15617801]
[1724718378089,0.158476,63101.0,63099.0,0.1]
[1724718378447,0.158478,63100.0,63099.0,0.25617801]
[1724718378677,0.475435,63100.0,63099.0,0.25617801]
[1724718379137,0.158474,63102.0,63099.0,0.25617801]
[1724718379711,0.158474,63102.0,63099.0,0.27017801]
[1724718379935,0.399936,63105.0,63100.0,0.15617801]
[1724718379936,0.083,63105.0,63100.0,0.15617801]
[1724718380069,0.083,63109.0,63102.0,0.158471]
[1724718380274,0.083,63109.0,63104.0,0.158468]
[1724718380482,0.158451,63111.0,63105.0,0.15617801]
[1724718380678,0.083,63112.0,63105.0,0.15617801]
[1724718380679,0.158453,63110.0,63105.0,0.15617801]
[1724718380909,0.158456,63109.0,63105.0,0.15617801]
[1724718381105,0.158456,63109.0,63105.0,0.23327801]
[1724718382117,0.158455,63110.0,63105.0,0.23327801]
[1724718382313,0.158455,63110.0,63105.0,0.24227801]
[1724718383010,0.15845,63112.0,63105.0,0.24927801]
[1724718383214,0.316895,63113.0,63105.0,0.2547444]
[1724718383215,0.158453,63111.0,63105.0,0.2547444]
[1724718383423,0.158454,63110.0,63105.0,0.2547444]
[1724718385043,0.316895,63113.0,63105.0,0.4132104]
[1724718385246,0.158449,63112.0,63105.0,0.2547444]
[1724718385379,0.158451,63111.0,63105.0,0.2547444]
[1724718386089,0.158446,63113.0,63105.0,0.4132104]
[1724718386291,0.158449,63112.0,63105.0,0.4132104]
[1724718386488,0.158449,63112.0,63105.0,0.2547444]
[1724718386950,0.158452,63111.0,63105.0,0.2547444]
[1724718387307,0.158453,63110.0,63105.0,0.1776444]
[1724718387788,0.5370964,63106.0,63105.0,0.016]
[1724718388029,0.9324234,63106.0,63105.0,0.016]
[1724718392904,0.9324234,63106.0,63105.0,0.009]
[1724718393163,0.79233,63105.0,63104.0,0.000824]
[1724718394390,0.79233,63105.0,63104.0,0.003824]
[1724718395026,1.248462,63105.0,63104.0,0.003824]
[1724718395553,1.29590611,63105.0,63104.0,0.003824]
[1724718395678,1.29590611,63105.0,63104.0,0.007824]
[1724718396373,1.248462,63105.0,63104.0,0.007824]
[1724718396759,1.29590611,63105.0,63104.0,0.007824]
[1724718397158,1.248462,63105.0,63104.0,0.007824]
[1724718398577,1.29589826,63105.0,63104.0,0.007824]
[1724718399384,1.23509826,63105.0,63104.0,0.007824]
[1724718399788,1.187662,63105.0,63104.0,0.007824]
[1724718400168,1.23509826,63105.0,63104.0,0.007824]
[1724718400369,1.187662,63105.0,63104.0,0.007824]
[1724718401617,0.87073,63105.0,63104.0,0.007824]
[1724718401771,0.79233,63105.0,63104.0,0.007824]
[1724718413094,1.10907127,63105.0,63104.0,0.007824]
[1724718413760,1.10997767,63105.0,63104.0,0.007824]
[1724718414250,1.15738212,63105.0,63104.0,0.007824]
[1724718416261,1.18108435,63105.0,63104.0,0.007824]
[1724718417275,1.10997767,63105.0,63104.0,0.007824]
[1724718418241,1.52290304,63105.0,63104.0,0.007824]
[1724718418649,1.60000304,63105.0,63104.0,0.007824]
[1724718418845,1.50519413,63105.0,63104.0,0.007824]
[1724718419459,1.50519413,63105.0,63104.0,0.000824]
[1724718419879,1.50919413,63105.0,63104.0,0.000824]
[1724718420213,1.50719413,63105.0,63104.0,0.000824]
[1724718420417,1.6474075,63105.0,63104.0,0.000824]
[1724718420569,1.6504075,63105.0,63104.0,0.001824]
[1724718421412,1.43109413,63105.0,63104.0,0.001824]
[1724718422381,1.42809413,63105.0,63104.0,0.000824]
[1724718422659,1.43009413,63105.0,63104.0,0.001824]
[1724718423035,1.43109413,63105.0,63104.0,0.001824]
[1724718423255,1.42809413,63105.0,63104.0,0.000824]
[1724718423479,1.43009413,63105.0,63104.0,0.001824]
[1724718423644,1.43309413,63105.0,63104.0,0.002824]
[1724718425974,1.54440306,63105.0,63104.0,0.002824]
[1724718426400,1.62150306,63105.0,63104.0,0.002824]
[1724718426998,1.96143506,63105.0,63104.0,0.002824]
[1724718427204,2.17781307,63105.0,63104.0,0.002824]
[1724718427420,0.0771,63095.0,63087.0,0.0611]
[1724718427615,0.0771,63095.0,63082.0,0.001824]
[1724718427616,0.158518,63084.0,63083.0,0.1393]
[1724718427821,0.95139673,63084.0,63083.0,0.1393]
[1724718428050,1.18087789,63084.0,63083.0,0.0611]
[1724718428286,0.792592,63084.0,63083.0,0.0611]
[1724718428458,0.158518,63084.0,63083.0,0.0611]
[1724718428670,0.158518,63084.0,63083.0,0.1393]
[1724718429220,0.38821904,63091.0,63088.0,0.001]
[1724718429221,0.04748048,63091.0,63088.0,0.001]
[1724718429419,0.04748048,63093.0,63088.0,0.001]
[1724718429798,0.04748048,63093.0,63087.0,0.1393]
[1724718429799,0.158508,63088.0,63087.0,0.1403]
[1724718430953,0.158505,63090.0,63087.0,0.1403]
[1724718431177,0.158508,63089.0,63088.0,0.001]
[1724718431354,0.158506,63089.0,63088.0,0.001]
[1724718431930,0.317008,63090.0,63088.0,0.001]
[1724718432143,0.158506,63089.0,63088.0,0.001]
[1724718432544,0.158506,63089.0,63087.0,0.1473]
[1724718432838,0.159506,63089.0,63088.0,0.006]
[1724718432981,0.160506,63089.0,63088.0,0.012]
[1724718433184,0.160506,63089.0,63088.0,0.011]
[1724718433390,0.159506,63089.0,63088.0,0.007]
[1724718433788,0.160506,63089.0,63088.0,0.007]
[1724718434406,0.160506,63089.0,63088.0,0.006]
[1724718434818,0.159506,63089.0,63088.0,0.007]
[1724718435015,0.159506,63089.0,63088.0,0.006]
[1724718435198,0.159506,63089.0,63088.0,0.011]
[1724718435401,0.159506,63089.0,63088.0,0.012]
[1724718437077,0.159506,63089.0,63088.0,0.011]
[1724718437277,0.159506,63089.0,63088.0,0.012]
[1724718437607,0.001,63089.0,63088.0,0.011824]
[1724718438235,0.001,63089.0,63088.0,0.012824]
[1724718440364,0.001,63089.0,63088.0,0.318632]
[1724718441391,0.001,63089.0,63088.0,0.3240735]
[1724718441593,0.001,63089.0,63088.0,0.159124]
[1724718441804,0.159506,63089.0,63088.0,0.011824]
[1724718442025,1.193142,63089.0,63088.0,0.011824]
[1724718442268,1.74452283,63089.0,63088.0,0.011824]
[1724718442468,2.12700025,63089.0,63088.0,0.011824]
[1724718442616,2.44401225,63089.0,63088.0,0.011824]
[1724718442816,2.44301225,63089.0,63088.0,0.000824]
[1724718443114,2.44501225,63089.0,63088.0,0.000824]
[1724718443785,2.45601225,63089.0,63088.0,0.001824]
[1724718444345,2.45401225,63089.0,63088.0,0.001824]
[1724718444765,2.46401225,63089.0,63088.0,0.002824]
[1724718445017,2.74244713,63089.0,63088.0,0.002824]
[1724718445131,2.73244713,63089.0,63088.0,0.001824]
[1724718445534,2.74244713,63089.0,63088.0,0.002824]
[1724718446372,2.50222301,63089.0,63088.0,0.002824]
[1724718446944,2.83750926,63089.0,63088.0,0.002824]
[1724718448272,2.60215529,63089.0,63088.0,0.002824]
[1724718450423,2.45996971,63089.0,63088.0,0.002824]
[1724718451279,2.44925444,63089.0,63088.0,0.002824]
[1724718453681,2.44925444,63089.0,63069.0,0.001]
[1724718453682,0.001,63071.0,63060.0,0.46876099]
[1724718454025,0.1401,63073.0,63060.0,0.46876099]
[1724718454026,0.90437659,63061.0,63060.0,0.46876099]
[1724718454228,0.475737,63060.0,63059.0,0.004124]
[1724718454426,0.792895,63060.0,63059.0,0.004124]
[1724718454844,1.110053,63060.0,63059.0,0.004124]
[1724718455848,1.120053,63060.0,63059.0,0.005124]
[1724718456053,1.39877025,63060.0,63059.0,0.005124]
[1724718456490,1.38877025,63060.0,63059.0,0.004124]
[1724718456911,1.39777025,63060.0,63059.0,0.004124]
[1724718457319,1.38877025,63060.0,63059.0,0.004124]
[1724718457926,1.39777025,63060.0,63059.0,0.004124]
[1724718458539,1.40777025,63060.0,63059.0,0.004124]
[1724718459485,1.43077025,63060.0,63059.0,0.004124]
[1724718460304,1.74792825,63060.0,63059.0,0.004124]
[1724718460580,1.73892825,63060.0,63059.0,0.004124]
[1724718460962,1.42977025,63060.0,63059.0,0.004124]
[1724718461342,1.41977025,63060.0,63059.0,0.004124]
[1724718461764,1.42977025,63060.0,63059.0,0.004124]
[1724718462452,1.41977025,63060.0,63059.0,0.004124]
[1724718462655,1.43077025,63060.0,63059.0,0.004124]
[1724718462856,1.40777025,63060.0,63059.0,0.004124]
[1724718463303,1.39677025,63060.0,63059.0,0.004124]
[1724718463665,1.38877025,63060.0,63059.0,0.004124]
[1724718464289,1.39877025,63060.0,63059.0,0.004124]
[1724718464914,1.40877025,63060.0,63059.0,0.004124]
[1724718465316,1.39877025,63060.0,63059.0,0.004124]
[1724718465852,1.39977025,63060.0,63059.0,0.004124]
[1724718466017,1.38877025,63060.0,63059.0,0.004124]
[1724718466175,1.54594826,63060.0,63059.0,0.004124]
[1724718466376,1.57894826,63060.0,63059.0,0.004124]
[1724718466617,1.89610626,63060.0,63059.0,0.004124]
[1724718467223,1.90510626,63060.0,63059.0,0.004124]
[1724718467377,1.69958901,63060.0,63059.0,0.004124]
[1724718467592,1.97830626,63060.0,63059.0,0.004124]
[1724718467800,1.98830626,63060.0,63059.0,0.004124]
[1724718468457,1.97830626,63060.0,63059.0,0.004124]
[1724718468909,1.98930626,63060.0,63059.0,0.004124]
[1724718469061,2.00330626,63060.0,63059.0,0.004124]
[1724718469273,1.99230626,63060.0,63059.0,0.004124]
[1724718469448,2.30946426,63060.0,63059.0,0.004124]
[1724718469643,2.38426426,63060.0,63059.0,0.004124]
[1724718469990,2.38426426,63060.0,63050.0,0.000823]
[1724718469991,1.70613025,63051.0,63050.0,0.000823]
[1724718470127,1.88630826,63051.0,63050.0,0.000823]
[1724718470731,1.38892725,63051.0,63050.0,0.000823]
[1724718470990,1.38892725,63051.0,63050.0,0.142723]
[1724718471160,0.475804,63051.0,63050.0,0.142723]
[1724718471624,0.479804,63051.0,63050.0,0.142723]
[1724718472006,0.484804,63051.0,63050.0,0.142723]
[1724718472777,0.797007,63051.0,63050.0,0.142723]
[1724718473201,0.476804,63051.0,63050.0,0.142723]
[1724718473608,0.476804,63051.0,63050.0,0.143723]
[1724718475649,0.475804,63051.0,63050.0,0.143723]
[1724718475887,0.793007,63051.0,63050.0,0.143723]
[1724718476117,0.793007,63051.0,63050.0,0.144723]
[1724718476118,1.07172425,63051.0,63050.0,0.144723]
[1724718476323,1.07172425,63051.0,63050.0,0.062423]
[1724718476654,1.38892725,63051.0,63050.0,0.064423]
[1724718476858,1.38892725,63051.0,63050.0,0.062423]
[1724718477157,1.39192725,63051.0,63050.0,0.062423]
[1724718477579,1.38892725,63051.0,63050.0,0.061423]
[1724718477806,1.39292725,63051.0,63050.0,0.061423]
[1724718478004,1.39692725,63051.0,63050.0,0.061423]
[1724718478178,1.39673646,63051.0,63050.0,0.000823]
[1724718478378,1.39273646,63051.0,63050.0,0.000823]
[1724718478822,1.39673646,63051.0,63050.0,0.000823]
[1724718479615,1.39273646,63051.0,63050.0,0.000823]
[1724718479963,1.39573646,63051.0,63050.0,0.000823]
[1724718480389,1.38873646,63051.0,63050.0,0.000823]
[1724718480785,1.39273646,63051.0,63050.0,0.000823]
[1724718480986,1.39773646,63051.0,63050.0,0.000823]
[1724718481130,1.55391447,63051.0,63050.0,0.000823]
[1724718481341,1.57691447,63051.0,63050.0,0.000823]
[1724718485031,1.57782087,63051.0,63050.0,0.000823]
[1724718488492,0.80272261,63051.0,63050.0,0.143023]
[1724718488909,0.16831661,63051.0,63050.0,0.143023]
[1724718489975,0.0099064,63051.0,63050.0,1.09222101]
[1724718490149,0.0099064,63051.0,63050.0,0.77501301]
[1724718490384,0.0099064,63051.0,63050.0,1.09222101]
[1724718490594,0.0099064,63051.0,63050.0,0.77501301]
[1724718490997,0.0059064,63051.0,63050.0,1.09222101]
[1724718491221,0.0009064,63051.0,63050.0,1.09222101]
[1724718491421,0.0049064,63051.0,63050.0,0.144023]
[1724718491623,0.0099064,63051.0,63050.0,0.144023]
[1724718491969,0.0099064,63051.0,63050.0,0.145023]
[1724718492157,0.1685074,63051.0,63050.0,0.145023]
[1724718492348,0.0099064,63051.0,63050.0,0.145023]
[1724718492578,0.0049064,63051.0,63050.0,0.145023]
[1724718493175,0.4807104,63051.0,63050.0,0.145023]
[1724718493400,0.1635074,63051.0,63050.0,0.145023]
[1724718493628,0.0049064,63051.0,63050.0,0.145023]
[1724718493980,0.0049064,63051.0,63050.0,0.146023]
[1724718495110,0.4807104,63051.0,63050.0,0.146023]
[1724718498683,0.0049064,63051.0,63050.0,0.304627]
[1724718499058,0.0049064,63051.0,63050.0,0.621835]
[1724718499642,0.0049064,63051.0,63050.0,0.146023]
[1724718503626,0.4807104,63051.0,63050.0,0.146023]
[1724718503823,0.7979134,63051.0,63050.0,0.146023]
[1724718504401,0.4807104,63051.0,63050.0,0.146023]
[1724718505315,0.1635074,63051.0,63050.0,0.146023]
[1724718505690,0.0049064,63051.0,63050.0,0.146023]
[1724718506871,0.0049064,63051.0,63050.0,1.09522101]
[1724718507100,0.0049064,63051.0,63050.0,0.87801301]
[1724718508201,0.0049064,63051.0,63050.0,0.88356446]
[1724718508813,0.0049064,63051.0,63050.0,1.20077246]
[1724718509216,0.0049064,63051.0,63050.0,0.88356446]
[1724718509715,0.0049064,63051.0,63050.0,1.20077246]
[1724718513316,0.0049064,63051.0,63050.0,1.51798046]
[1724718513928,0.0049064,63051.0,63050.0,1.20077246]
[1724718516375,0.0049064,63051.0,63050.0,1.51798046]
[1724718516700,0.0049064,63051.0,63050.0,1.20077246]
[1724718524742,0.0049064,63051.0,63050.0,1.62940601]
[1724718550128,0.0049064,63051.0,63050.0,1.67694443]
[1724718550357,0.0049064,63051.0,63050.0,1.7609274]
[1724718550556,0.0049064,63051.0,63050.0,1.88394104]
[1724718550763,0.0009064,63051.0,63050.0,2.22292546]
[1724718550965,0.0009064,63051.0,63050.0,2.10407941]
[1724718551167,0.0019064,63051.0,63050.0,2.22790725]
[1724718551568,0.0019064,63051.0,63050.0,2.20416423]
[1724718551798,0.0019064,63051.0,63050.0,2.10907941]
[1724718552146,0.0029064,63051.0,63050.0,2.11407941]
[1724718552573,0.0009064,63051.0,63050.0,2.22292389]
[1724718552729,0.0019064,63051.0,63050.0,2.10907941]
[1724718553130,0.0019064,63051.0,63050.0,2.22792647]
[1724718553380,0.0019064,63051.0,63050.0,2.10990807]
[1724718553381,0.0029064,63051.0,63050.0,2.10990807]
[1724718553585,0.0029064,63051.0,63050.0,2.1140774]
[1724718553781,0.0029064,63051.0,63050.0,2.01482777]
[1724718554261,0.0029064,63051.0,63050.0,2.0861367]
[1724718555302,0.0029064,63051.0,63050.0,1.95461401]
[1724718555701,0.0029064,63051.0,63050.0,2.00215469]
[1724718556726,0.0029064,63051.0,63050.0,2.08525802]
[1724718556996,0.0029064,63051.0,63050.0,2.01394909]
[1724718557219,0.0029064,63051.0,63050.0,2.08524979]
[1724718557650,0.0029064,63051.0,63050.0,2.0145327]
[1724718559339,0.0029064,63051.0,63050.0,2.08583476]
[1724718559543,0.0029064,63051.0,63050.0,2.0145327]
[1724718560386,0.0029064,63051.0,63050.0,2.11377714]
[1724718561327,0.0784,63070.0,63069.0,0.792782]
[1724718561590,0.0784,63070.0,63069.0,0.94896001]
[1724718561797,0.0608,63074.0,63073.0,0.158546]
[1724718562030,0.1392,63074.0,63073.0,0.475638]
[1724718562204,0.0608,63078.0,63071.0,0.317099]
[1724718562403,0.0608,63078.0,63074.0,0.158543]
[1724718562918,0.0608,63078.0,63072.0,0.158547]
[1724718563143,0.0608,63078.0,63073.0,0.158545]
[1724718563258,0.008,63074.0,63073.0,0.159545]
[1724718564679,0.0728,63078.0,63074.0,0.158543]
[1724718565162,0.0668,63078.0,63074.0,0.158543]
[1724718565277,0.0785,63077.0,63074.0,0.158543]
[1724718565493,0.0785,63074.0,63069.0,0.158554]
[1724718565699,0.158542,63075.0,63069.0,0.158554]
[1724718565700,0.0785,63071.0,63069.0,0.158554]
[1724718566323,0.0785,63071.0,63069.0,0.16411544]
[1724718568364,0.0785,63071.0,63069.0,0.16611544]
[1724718568928,0.0785,63071.0,63069.0,0.16911544]
[1724718574371,0.0785,63071.0,63070.0,0.31473101]
[1724718574598,0.0785,63074.0,63070.0,0.31473101]
[1724718574816,0.0785,63074.0,63071.0,0.15855]
[1724718575022,0.0785,63074.0,63071.0,0.317101]
[1724718575155,0.04752972,63076.0,63070.0,0.47328501]
[1724718575357,0.0475301,63076.0,63071.0,0.078]
[1724718575692,0.0785,63077.0,63075.0,0.158539]
[1724718576618,0.003,63076.0,63075.0,0.158539]
[1724718577069,0.0785,63077.0,63075.0,0.158539]
[1724718577280,0.004,63076.0,63075.0,0.158539]
[1724718577838,0.0785,63077.0,63075.0,0.158539]
[1724718578256,0.0825,63077.0,63075.0,0.158539]
[1724718578456,0.004,63076.0,63075.0,0.158539]
[1724718579033,0.1393,63080.0,63076.0,0.158538]
[1724718579306,0.005,63077.0,63076.0,0.158538]
[1724718580652,0.0475301,63081.0,63076.0,0.158538]
[1724718580848,0.2060561,63081.0,63076.0,0.158538]
[1724718581079,0.0475301,63081.0,63076.0,0.317077]
[1724718581285,0.0475301,63081.0,63076.0,0.158538]
[1724718581523,0.0484365,63082.0,63077.0,0.158535]
[1724718581738,0.009,63081.0,63077.0,0.158535]
[1724718581948,0.004,63077.0,63076.0,0.001]
[1724718582329,0.0484365,63082.0,63074.0,0.317086]
[1724718582531,0.008,63081.0,63077.0,0.158534]
[1724718583465,0.0484365,63082.0,63077.0,0.158534]
[1724718583973,0.008,63081.0,63077.0,0.159534]
[1724718584349,0.008,63081.0,63077.0,0.160534]
[1724718584917,0.0484365,63082.0,63077.0,0.158534]
[1724718585150,0.009,63081.0,63077.0,0.159534]
[1724718585346,0.009,63081.0,63077.0,0.160534]
[1724718585567,0.009,63081.0,63077.0,0.159534]
[1724718586024,0.008,63081.0,63077.0,0.159534]
[1724718586193,0.008,63081.0,63077.0,0.160534]
[1724718587417,0.008,63081.0,63077.0,0.159534]
[1724718587754,0.017,63081.0,63077.0,0.160534]
[1724718589162,0.0179064,63081.0,63077.0,0.160534]
[1724718589365,0.0179064,63081.0,63080.0,0.475585]
[1724718589600,0.0179064,63081.0,63080.0,0.69546301]
[1724718589775,0.0179064,63081.0,63080.0,1.01252001]
[1724718590460,0.0089064,63081.0,63080.0,1.01252001]
[1724718590961,0.0119064,63081.0,63080.0,1.01252001]
[1724718591169,0.0119064,63081.0,63080.0,1.32957701]
[1724718591303,0.0089064,63081.0,63080.0,1.32957701]
[1724718591737,0.0089064,63081.0,63080.0,1.33157701]
[1724718591738,0.0009064,63081.0,63080.0,1.33157701]
[1724718592318,0.0089064,63081.0,63080.0,1.01352001]
[1724718592519,0.0009064,63081.0,63080.0,1.01252001]
[1724718592945,0.0009064,63081.0,63080.0,0.005]
[1724718593838,0.0009064,63081.0,63080.0,0.009]
[1724718594001,0.1594324,63081.0,63080.0,0.009]
[1724718595090,0.4764844,63081.0,63080.0,0.009]
[1724718595505,0.1594324,63081.0,63080.0,0.009]
[1724718595735,0.6142844,63081.0,63080.0,0.009]
[1724718595954,1.63887765,63081.0,63080.0,0.009]
[1724718596121,0.11242555,63070.0,63050.0,0.46958399]
[1724718596316,0.317065,63079.0,63050.0,0.46958399]
[1724718596317,0.34702655,63051.0,63050.0,0.46958399]
[1724718596529,0.66422955,63051.0,63050.0,0.46958399]
[1724718596732,0.66422955,63051.0,63050.0,0.000823]
[1724718597078,0.71602955,63051.0,63050.0,0.000823]
[1724718598128,0.235601,63051.0,63050.0,0.000823]
[1724718598501,0.004,63051.0,63050.0,0.000823]
[1724718599117,0.007,63051.0,63050.0,0.15700101]
[1724718600150,0.003,63051.0,63050.0,0.15700101]
[1724718601019,0.003,63051.0,63050.0,0.000823]
[1724718601224,0.158598,63053.0,63050.0,0.000823]
[1724718601603,0.001,63051.0,63050.0,0.002823]
[1724718602393,0.158598,63053.0,63050.0,0.000823]
[1724718602748,0.158598,63053.0,63050.0,0.002823]
[1724718603141,0.158598,63053.0,63050.0,0.004823]
[1724718603535,0.158598,63053.0,63050.0,0.002823]
[1724718604918,0.317179,63056.0,63050.0,0.002823]
[1724718605212,0.001,63051.0,63050.0,0.004823]
[1724718605630,0.158595,63054.0,63050.0,0.002823]
[1724718606012,0.158589,63056.0,63051.0,0.0809]
[1724718606319,0.077,63059.0,63052.0,0.21817801]
[1724718606431,0.317162,63060.0,63052.0,0.37677701]
[1724718606432,0.001,63056.0,63052.0,0.37677701]
[1724718607093,0.158584,63058.0,63052.0,0.37677701]
[1724718607699,0.001,63056.0,63052.0,0.37677701]
[1724718608909,0.158584,63058.0,63052.0,0.37677601]
[1724718609567,0.158587,63057.0,63052.0,0.21817801]
[1724718609775,0.161584,63058.0,63052.0,0.21817801]
[1724718610235,0.1613932,63058.0,63052.0,0.21817801]
[1724718610434,0.158586,63057.0,63052.0,0.37677601]
[1724718610815,0.002,63057.0,63053.0,0.158596]
[1724718610990,0.002,63057.0,63053.0,0.31477401]
[1724718611609,0.002,63057.0,63053.0,0.15617801]
[1724718612208,0.001,63057.0,63053.0,0.15617801]
[1724718612409,0.158584,63058.0,63053.0,0.15617801]
[1724718612612,0.002,63057.0,63053.0,0.15617801]
[1724718612849,0.003,63057.0,63053.0,0.31477301]
[1724718613052,0.003,63057.0,63053.0,0.15617801]